Workbook

Sheet 2013
A1: 전통시장 상품권 구입 및 배부 현황
A2: 구입일자 | B2: 구입금액(원) | C2: 전체상품권 구입액 대비 비율 | D2: 구입목적 | E2: 배부처 | F2: 배부금액(원)
A3: 2013-06-13 | B3: 700000 | C3: =B3/$B$13*100 -> 8.354109207 | D3: 직원 생일축하금 | E3: 당사자 개별 지급 | F3: 700000
A4: 2013-07-29 | B4: 600000 | C4: =B4/$B$13*100 -> 7.160665035 | D4: 직원 생일축하금 | E4: 당사자 개별 지급 | F4: 600000
A5: 2013-08-05 | B5: 1000000 | C5: 11.93444172 | D5: 직원 생일축하금 | E5: 당사자 개별 지급 | F5: 1000000
A6: 2013-09-03 | B6: 1000000 | C6: 11.93444172 | D6: 직원 생일축하금 | E6: 당사자 개별 지급 | F6: 1000000
A7: 2013-09-13 | B7: 696110 | C7: 8.307684229 | D7: 나눔경영 물품구매용 | E7: 영동전통시장 | F7: 구입물품으로 전달
A8: 2013-09-13 | B8: 233000 | C8: 2.780724922 | D8: 동원관리자 배포용 선물구입 | E8: 영동전통시장 | F8: 구입물품으로 전달
A9: 2013-10-08 | B9: 950000 | C9: 11.33771964 | D9: 직원 생일축하금 | E9: 당사자 개별 지급 | F9: 950000
A10: 2013-11-06 | B10: 1400000 | C10: 16.70821841 | D10: 직원 생일축하금 | E10: 당사자 개별 지급 | F10: 1400000
A11: 2013-11-11 | B11: 1000000 | C11: 11.93444172 | D11: 추계체육행사 배포용 | E11: 부서 대표자 3인 | F11: 1000000
A12: 2013-12-02 | B12: 800000 | C12: 9.54755338 | D12: 직원 생일축하금 | E12: 당사자 개별 지급 | F12: 800000
A13: 2013년 총 구입액 | B13: =SUM(B3:B12) -> 8379110 | C13: =SUM(C3:C12) -> 100

Sheet 2014
A1: 전통시장 상품권 구입 및 배부 현황
A2: 구입일자 | B2: 구입금액(원) | C2: 전체상품권 구입액 대비 비율 | D2: 구입목적 | E2: 배부처 | F2: 배부금액(원)
A3: 2014-03-05 | B3: 100000 | C3: =B3/$B$14*100 -> 1.470588235 | D3: 포상금 | E3: 당사자 개별 지급 | F3: =B3 -> 100000
A4: 2014-04-18 | B4: 100000 | C4: =B4/$B$14*100 -> 1.470588235 | D4: 포상금 | E4: 당사자 개별 지급 | F4: =B4 -> 100000
A5: 2014-06-17 | B5: 550000 | C5: 8.088235294 | D5: 직원 생일축하금 | E5: 당사자 개별 지급 | F5: 550000
A6: 2014-07-03 | B6: 850000 | C6: 12.5 | D6: 직원 생일축하금 | E6: 당사자 개별 지급 | F6: 850000
A7: 2014-08-06 | B7: 850000 | C7: 12.5 | D7: 직원 생일축하금 | E7: 당사자 개별 지급 | F7: 850000
A8: 2014-09-11 | B8: 1000000 | C8: 14.70588235 | D8: 직원 생일축하금 | E8: 당사자 개별 지급 | F8: 1000000
A9: 2014-10-07 | B9: 1050000 | C9: 15.44117647 | D9: 직원 생일축하금 | E9: 당사자 개별 지급 | F9: 1050000
A10: 2014-10-18 | B10: 500000 | C10: 7.352941176 | D10: 국민공감 우수성과 온라인 인기투표 답례품 지급 | E10: 당사자 개별 지급 | F10: 500000
A11: 2014-11-04 | B11: 950000 | C11: 13.97058824 | D11: 직원 생일축하금 | E11: 당사자 개별 지급 | F11: 950000
A12: 2014-12-08 | B12: 800000 | C12: 11.76470588 | D12: 직원 생일축하금 | E12: 당사자 개별 지급 | F12: 800000
A13: 2014-12-12 | B13: 50000 | C13: 0.7352941176 | D13: 직원 생일축하금 | E13: 당사자 개별 지급 | F13: 50000
A14: 2014년 총 구입액 | B14: =SUM(B3:B13) -> 6800000 | C14: =SUM(C3:C13) -> 100

Sheet 2015
A1: 전통시장 상품권 구입 및 배부 현황
A2: 구입일자 | B2: 구입금액(원) | C2: 전체상품권 구입액 대비 비율 | D2: 구입목적 | E2: 배부처 | F2: 배부금액(원)
A3: 2015-01-16 | B3: 850000 | C3: =B3/$B$20*100 -> 1.759834369 | D3: 직원 생일축하금 | E3: 당사자 개별 지급 | F3: 850000
A4: 2015-01-23 | B4: 10450000 | C4: =B4/$B$20*100 -> 21.63561077 | D4: 개원 기념식 기념 전직원 지급 | E4: 당사자 개별 지급 | F4: 10450000
A5: 2015-02-06 | B5: 350000 | C5: 0.7246376812 | D5: 개원 기념식 기념 전직원 지급(신규입사자) | E5: 당사자 개별 지급 | F5: 350000
A6: 2015-02-06 | B6: 850000 | C6: 1.759834369 | D6: 직원 생일축하금 | E6: 당사자 개별 지급 | F6: 850000
A7: 2015-02-12 | B7: 10650000 | C7: 22.04968944 | D7: 설 명절 임직원 격려금 | E7: 당사자 개별 지급 | F7: 10650000
A8: 2015-03-06 | B8: 750000 | C8: 1.552795031 | D8: 직원 생일축하금 | E8: 당사자 개별 지급 | F8: 750000
A9: 2015-04-06 | B9: 800000 | C9: 1.6563147 | D9: 직원 생일축하금 | E9: 당사자 개별 지급 | F9: 800000
A10: 2015-05-06 | B10: 900000 | C10: 1.863354037 | D10: 직원 생일축하금 | E10: 당사자 개별 지급 | F10: 900000
A11: 2015-05-20 | B11: 3000000 | C11: 6.211180124 | D11: 직원 화합행사 배포용 | E11: 당사자 개별 지급 | F11: 3000000
A12: 2015-06-03 | B12: 600000 | C12: 1.242236025 | D12: 직원 생일축하금 | E12: 당사자 개별 지급 | F12: 600000
A13: 2015-07-13 | B13: 950000 | C13: 1.966873706 | D13: 직원 생일축하금 | E13: 당사자 개별 지급 | F13: 950000
A14: 2015-08-03 | B14: 1150000 | C14: 2.380952381 | D14: 직원 생일축하금 | E14: 당사자 개별 지급 | F14: 1150000
A15: 2015-09-04 | B15: 1050000 | C15: 2.173913043 | D15: 직원 생일축하금 | E15: 당사자 개별 지급 | F15: 1050000
A16: 2015-09-17 | B16: 12350000 | C16: 25.56935818 | D16: 추석 명절 임직원 격려금 | E16: 당사자 개별 지급 | F16: 12350000
A17: 2015-10-02 | B17: 1400000 | C17: 2.898550725 | D17: 직원 생일축하금 | E17: 당사자 개별 지급 | F17: 1400000
A18: 2015-11-12 | B18: 1250000 | C18: 2.587991718 | D18: 직원 생일축하금 | E18: 당사자 개별 지급 | F18: 1250000
A19: 2015-12-14 | B19: 950000 | C19: 1.966873706 | D19: 직원 생일축하금 | E19: 당사자 개별 지급 | F19: 950000
A20: 2015년 총 구입액 | B20: =SUM(B3:B19) -> 48300000 | C20: 100

Sheet 2016
A1: 전통시장 상품권 구입 및 배부 현황
A2: 구입일자 | B2: 구입금액(원) | C2: 전체상품권 구입액 대비 비율 | D2: 구입목적 | E2: 배부처 | F2: 배부금액(원)
A3: 2016-01-25 | B3: 1150000 | C3: =B3/$B$18*100 -> 2.754491018 | D3: 직원 생일축하금 | E3: 당사자 개별 지급 | F3: 1150000
A4: 2016-02-02 | B4: 13850000 | C4: =B4/$B$18*100 -> 33.17365269 | D4: 설 명절 직원 격려금 | E4: 당사자 개별 지급 | F4: 13850000
A5: 2016-02-16 | B5: 1400000 | C5: 3.353293413 | D5: 직원 생일축하금 | E5: 당사자 개별 지급 | F5: 1400000
A6: 2016-03-10 | B6: 800000 | C6: 1.916167665 | D6: 직원 생일축하금 | E6: 당사자 개별 지급 | F6: 800000
A7: 2016-04-11 | B7: 1200000 | C7: 2.874251497 | D7: 직원 생일축하금 | E7: 당사자 개별 지급 | F7: 1200000
A8: 2016-05-03 | B8: 950000 | C8: 2.275449102 | D8: 직원 생일축하금 | E8: 당사자 개별 지급 | F8: 950000
A9: 2016-06-03 | B9: 900000 | C9: 2.155688623 | D9: 직원 생일축하금 | E9: 당사자 개별 지급 | F9: 900000
A10: 2016-07-06 | B10: 1000000 | C10: 2.395209581 | D10: 직원 생일축하금 | E10: 당사자 개별 지급 | F10: =B10 -> 1000000
A11: 2016-08-02 | B11: 1050000 | C11: 2.51497006 | D11: 직원 생일축하금 | E11: 당사자 개별 지급 | F11: =B11 -> 1050000
A12: 2016-08-16 | B12: 300000 | C12: 0.7185628743 | D12: 포상금 | E12: 당사자 개별 지급 | F12: 300000
A13: 2016-09-05 | B13: 1350000 | C13: 3.233532934 | D13: 직원 생일축하금 | E13: 당사자 개별 지급 | F13: 1350000
A14: 2016-09-09 | B14: 13900000 | C14: 33.29341317 | D14: 추석 명절 직원 격려금 | E14: 당사자 개별 지급 | F14: 13900000
A15: 2016-10-07 | B15: 1500000 | C15: 3.592814371 | D15: 직원 생일축하금 | E15: 당사자 개별 지급 | F15: 1500000
A16: 2016-11-01 | B16: 1350000 | C16: 3.233532934 | D16: 직원 생일축하금 | E16: 당사자 개별 지급 | F16: 1350000
A17: 2016-12-08 | B17: 1050000 | C17: 2.51497006 | D17: 직원 생일축하금 | E17: 당사자 개별 지급 | F17: 1050000
A18: 2016년 총 구입액 | B18: =SUM(B3:B17) -> 41750000 | C18: 100

Sheet 2017
A1: 전통시장 상품권 구입 및 배부 현황
A2: 구입일자 | B2: 구입금액(원) | C2: 전체상품권 구입액 대비 비율 | D2: 구입목적 | E2: 배부처 | F2: 배부금액(원)
A3: 2017-01-25 | B3: 3200000 | C3: =B3/$B$20*100 -> 6.659729448 | D3: 개원기념 포상금 | E3: 당사자 개별 지급 | F3: =B3 -> 3200000
A4: 2017-09-13 | B4: 600000 | C4: =B4/$B$20*100 -> 1.248699272 | D4: 포상금 | E4: 당사자 개별 지급 | F4: =B4 -> 600000
A5: 2017-01-04 | B5: 1350000 | C5: 2.809573361 | D5: 생일축하금 | E5: 당사자 개별 지급 | F5: 1350000
A6: 2017-01-25 | B6: 14050000 | C6: 29.24037461 | D6: 설 명절 직원 격려금 | E6: 당사자 개별 지급 | F6: 14050000
A7: 2017-02-06 | B7: 50000 | C7: 0.1040582726 | D7: 설 명절 직원 격려금 | E7: 당사자 개별 지급 | F7: 50000
A8: 2017-02-07 | B8: 1450000 | C8: 3.017689906 | D8: 생일축하금 | E8: 당사자 개별 지급 | F8: 1450000
A9: 2017-03-03 | B9: 950000 | C9: 1.97710718 | D9: 생일축하금 | E9: 당사자 개별 지급 | F9: 950000
A10: 2017-04-05 | B10: 1050000 | C10: 2.185223725 | D10: 생일축하금 | E10: 당사자 개별 지급 | F10: 1050000
A11: 2017-05-04 | B11: 1100000 | C11: 2.289281998 | D11: 생일축하금 | E11: 당사자 개별 지급 | F11: 1100000
A12: 2017-06-07 | B12: 1050000 | C12: 2.185223725 | D12: 생일축하금 | E12: 당사자 개별 지급 | F12: 1050000
A13: 2017-07-03 | B13: 1100000 | C13: 2.289281998 | D13: 생일축하금 | E13: 당사자 개별 지급 | F13: 1100000
A14: 2017-08-02 | B14: 1150000 | C14: 2.393340271 | D14: 생일축하금 | E14: 당사자 개별 지급 | F14: 1150000
A15: 2017-09-07 | B15: 1400000 | C15: 2.913631634 | D15: 생일축하금 | E15: 당사자 개별 지급 | F15: 1400000
A16: 2017-09-27 | B16: 15350000 | C16: 31.9458897 | D16: 추석 명절 직원 격려금 | E16: 당사자 개별 지급 | F16: 15350000
A17: 2017-10-11 | B17: 1600000 | C17: 3.329864724 | D17: 생일축하금 | E17: 당사자 개별 지급 | F17: 1600000
A18: 2017-11-09 | B18: 1300000 | C18: 2.705515088 | D18: 생일축하금 | E18: 당사자 개별 지급 | F18: 1300000
A19: 2017-12-01 | B19: 1300000 | C19: 2.705515088 | D19: 생일축하금 | E19: 당사자 개별 지급 | F19: 1300000
A20: 2017년 총 구입액 | B20: =SUM(B3:B19) -> 48050000 | C20: 100

Sheet 2018
A1: 전통시장 상품권 구입 및 배부 현황
A2: 구입일자 | B2: 구입금액(원) | C2: 전체상품권 구입액 대비 비율 | D2: 구입목적 | E2: 배부처 | F2: 배부금액(원)
A3: 2018-01-02 | B3: 1750000 | C3: =B3/$B$22*100 -> 2.348993289 | D3: 생일축하금 | E3: 당사자 개별 지급 | F3: =B3 -> 1750000
A4: 2018-01-30 | B4: 3200000 | C4: =B4/$B$22*100 -> 4.295302013 | D4: 개원기념 포상금 | E4: 당사자 개별 지급 | F4: =B4 -> 3200000
A5: 2018-02-07 | B5: 1650000 | C5: 2.214765101 | D5: 생일축하금 | E5: 당사자 개별 지급 | F5: =B5 -> 1650000
A6: 2018-02-09 | B6: 15350000 | C6: 20.60402685 | D6: 설 명절 직원 격려금 | E6: 당사자 개별 지급 | F6: 15350000
A7: 2018-02-28 | B7: 850000 | C7: 1.140939597 | D7: 생일축하금 | E7: 당사자 개별 지급 | F7: 850000
A8: 2018-04-04 | B8: 1250000 | C8: 1.677852349 | D8: 생일축하금 | E8: 당사자 개별 지급 | F8: 1250000
A9: 2018-05-04 | B9: 1050000 | C9: 1.409395973 | D9: 생일축하금 | E9: 당사자 개별 지급 | F9: 1050000
A10: 2018-06-04 | B10: 850000 | C10: 1.140939597 | D10: 생일축하금 | E10: 당사자 개별 지급 | F10: 850000
A11: 2018-07-31 | B11: 1150000 | C11: 1.543624161 | D11: 생일축하금 | E11: 당사자 개별 지급 | F11: 1150000
A12: 2018-08-29 | B12: 1150000 | C12: 1.543624161 | D12: 생일축하금 | E12: 당사자 개별 지급 | F12: 1150000
A13: 2018-09-13 | B13: 1400000 | C13: 1.879194631 | D13: 생일축하금 | E13: 당사자 개별 지급 | F13: 1400000
A14: 2018-09-21 | B14: 18050000 | C14: 24.22818792 | D14: 추석 명절 직원 격려금 | E14: 당사자 개별 지급 | F14: 18050000
A15: 2018-10-02 | B15: 50000 | C15: 0.06711409396 | D15: 생일축하금 | E15: 당사자 개별 지급 | F15: 50000
A16: 2018-10-02 | B16: 1450000 | C16: 1.946308725 | D16: 생일축하금 | E16: 당사자 개별 지급 | F16: 1450000
A17: 2018-10-12 | B17: 600000 | C17: 0.8053691275 | D17: 포상금 | E17: 당사자 개별 지급 | F17: 600000
A18: 2018-11-09 | B18: 1400000 | C18: 1.879194631 | D18: 생일축하금 | E18: 당사자 개별 지급 | F18: 1400000
A19: 2018-11-09 | B19: 17850000 | C19: 23.95973154 | D19: 전직원 화합행사 기념 | E19: 당사자 개별 지급 | F19: 17850000
A20: 2018-12-18 | B20: 1450000 | C20: 1.946308725 | D20: 생일축하금 | E20: 당사자 개별 지급 | F20: 1450000
A21: 2018-12-26 | B21: 4000000 | C21: 5.369127517 | D21: 포상금 | E21: 당사자 개별 지급 | F21: 4000000
A22: 2018년 총 구입액 | B22: =SUM(B3:B21) -> 74500000 | C22: 100

Sheet 2019
A1: 전통시장 상품권 구입 및 배부 현황
A2: 구입일자 | B2: 구입금액(원) | C2: 전체상품권 구입액 대비 비율 | D2: 구입목적 | E2: 배부처 | F2: 배부금액(원)
A3: 2019-01-28 | B3: 14950000 | C3: =B3/$B$22*100 -> 20.34013605 | D3: 개원기념 직원격려금 | E3: 당사자 개별 지급 | F3: 14950000
A4: 2019-01-29 | B4: 3300000 | C4: =B4/$B$22*100 -> 4.489795918 | D4: 개원기념 포상금 | E4: 당사자 개별 지급 | F4: 3300000
A5: 2019-01-29 | B5: 2100000 | C5: 2.857142857 | D5: 생일축하금 | E5: 당사자 개별 지급 | F5: 2100000
A6: 2019-01-29 | B6: 2300000 | C6: 3.129251701 | D6: 개원기념 직원격려금 | E6: 당사자 개별 지급 | F6: 2300000
A7: 2019-04-03 | B7: 1400000 | C7: 1.904761905 | D7: 생일축하금 | E7: 당사자 개별 지급 | F7: 1400000
A8: 2019-04-25 | B8: 400000 | C8: 0.5442176871 | D8: 생일축하금 | E8: 당사자 개별 지급 | F8: 400000
A9: 2019-04-25 | B9: 950000 | C9: 1.292517007 | D9: 생일축하금 | E9: 당사자 개별 지급 | F9: 950000
A10: 2019-04-25 | B10: 1750000 | C10: 2.380952381 | D10: 생일축하금 | E10: 당사자 개별 지급 | F10: 1750000
A11: 2019-04-26 | B11: 17150000 | C11: 23.33333333 | D11: 근로자의 날 기념 | E11: 당사자 개별 지급 | F11: 17150000
A12: 2019-06-11 | B12: 900000 | C12: 1.224489796 | D12: 생일축하금 | E12: 당사자 개별 지급 | F12: 900000
A13: 2019-06-11 | B13: 950000 | C13: 1.292517007 | D13: 생일축하금 | E13: 당사자 개별 지급 | F13: 950000
A14: 2019-07-01 | B14: 1750000 | C14: 2.380952381 | D14: 생일축하금 | E14: 당사자 개별 지급 | F14: 1750000
A15: 2019-08-22 | B15: 1500000 | C15: 2.040816327 | D15: 생일축하금 | E15: 당사자 개별 지급 | F15: 1500000
A16: 2019-09-30 | B16: 1400000 | C16: 1.904761905 | D16: 생일축하금 | E16: 당사자 개별 지급 | F16: 1400000
A17: 2019-10-18 | B17: 1550000 | C17: 2.108843537 | D17: 생일축하금 | E17: 당사자 개별 지급 | F17: 1550000
A18: 2019-11-15 | B18: 18050000 | C18: 24.55782313 | D18: 전직원 화합행사 기념 | E18: 당사자 개별 지급 | F18: 18050000
A19: 2019-11-15 | B19: 50000 | C19: 0.06802721088 | D19: 생일축하금 | E19: 당사자 개별 지급 | F19: 50000
A20: 2019-11-29 | B20: 1600000 | C20: 2.176870748 | D20: 생일축하금 | E20: 당사자 개별 지급 | F20: 1600000
A21: 2019-12-20 | B21: 1450000 | C21: 1.972789116 | D21: 생일축하금 | E21: 당사자 개별 지급 | F21: 1450000
A22: 2019년 총 구입액 | B22: =SUM(B3:B21) -> 73500000 | C22: 100
